[Event "Titled Tuesday Blitz June 27 Early 2023"]
[White "Jia, Haoxiang"]
[Black "Sanhueza, Cristian"]
[WhiteFideId "8602999"]
[BlackFideId "116815"]
[WhiteElo "2638"]
[BlackElo "2486"]
[Result "1-0"]
[Round "8"]
[TimeControl "180+2"]
[Date "2023.06.27"]
[WhiteClock "0:00:15"]
[BlackClock "0:00:04"]
[Board "68"]

1. d4 {[%clk 0:00:50]}  Nf6 {[%clk 0:02:57]} 2. c4 {[%clk 0:00:50]}  g6 {[%clk 0:02:57]} 3. Nf3 {[%clk 0:00:50]}  Bg7 {[%clk 0:02:58]} 4. g3 {[%clk 0:00:51]}  O-O {[%clk 0:02:59]} 5. Bg2 {[%clk 0:00:52]}  d6 {[%clk 0:03:00]} 6. O-O {[%clk 0:00:52]}  Nc6 {[%clk 0:03:00]} 7. Nc3 {[%clk 0:00:53]}  a6 {[%clk 0:03:00]} 8. d5 {[%clk 0:00:53]}  Na5 {[%clk 0:03:01]} 9. Nd2 {[%clk 0:00:52]}  c5 {[%clk 0:03:01]} 10. Qc2 {[%clk 0:00:52]}  Rb8 {[%clk 0:03:02]} 11. Rb1 {[%clk 0:00:52]}  b5 {[%clk 0:03:01]} 12. b3 {[%clk 0:00:52]}  h5 {[%clk 0:03:01]} 13. e4 {[%clk 0:00:52]}  h4 {[%clk 0:03:01]} 14. Nd1 {[%clk 0:00:50]}  hxg3 {[%clk 0:02:59]} 15. hxg3 {[%clk 0:00:49]}  e5 {[%clk 0:03:00]} 16. Ne3 {[%clk 0:00:49]}  Ng4 {[%clk 0:02:54]} 17. Nxg4 {[%clk 0:00:41]}  Bxg4 {[%clk 0:02:55]} 18. f3 {[%clk 0:00:40]}  Bd7 {[%clk 0:02:41]} 19. Rf2 {[%clk 0:00:38]}  Bh6 {[%clk 0:02:37]} 20. cxb5 {[%clk 0:00:37]}  Be3 {[%clk 0:02:32]} 21. bxa6 {[%clk 0:00:35]}  Bxf2+ {[%clk 0:02:20]} 22. Kxf2 {[%clk 0:00:34]}  Qb6 {[%clk 0:02:21]} 23. Bf1 {[%clk 0:00:31]}  Bb5 {[%clk 0:02:18]} 24. Nc4 {[%clk 0:00:26]}  Qxa6 {[%clk 0:02:08]} 25. Bd2 {[%clk 0:00:20]}  Bxc4 {[%clk 0:01:45]} 26. bxc4 {[%clk 0:00:19]}  Kg7 {[%clk 0:01:28]} 27. Rb5 {[%clk 0:00:16]}  Rxb5 {[%clk 0:01:16]} 28. cxb5 {[%clk 0:00:17]}  Qb6 {[%clk 0:01:17]} 29. a4 {[%clk 0:00:16]}  Rh8 {[%clk 0:01:16]} 30. Qc3 {[%clk 0:00:16]}  Ra8 {[%clk 0:00:48]} 31. f4 {[%clk 0:00:17]}  f6 {[%clk 0:00:47]} 32. Be2 {[%clk 0:00:16]}  Nb7 {[%clk 0:00:40]} 33. Bd1 {[%clk 0:00:16]}  Qd8 {[%clk 0:00:29]} 34. Kg2 {[%clk 0:00:17]}  Na5 {[%clk 0:00:15]} 35. fxe5 {[%clk 0:00:17]}  fxe5 {[%clk 0:00:15]} 36. Qc1 {[%clk 0:00:17]}  Qe7 {[%clk 0:00:10]} 37. Bh6+ {[%clk 0:00:17]}  Kh7 {[%clk 0:00:08]} 38. Bg5 {[%clk 0:00:17]}  Qf7 {[%clk 0:00:08]} 39. Bg4 {[%clk 0:00:17]}  Rf8 {[%clk 0:00:08]} 40. Qh1+ {[%clk 0:00:17]}  Kg8 {[%clk 0:00:07]} 41. Be6 {[%clk 0:00:17]}  Nc4 {[%clk 0:00:04]} 42. Bxf7+ {[%clk 0:00:16]}  Rxf7 {[%clk 0:00:05]} 43. Qh6 {[%clk 0:00:15]}  Rg7 {[%clk 0:00:04]} 44. Bf6 {[%clk 0:00:14]}  Rf7 {[%clk 0:00:04]} 45. Qh8# {[%clk 0:00:15]} 1-0


[Site "https://www.chess.com"]

[Event "Titled Tuesday Blitz June 27 Early 2023"]
[White "Kovalevsky, Stanislav"]
[Black "Al-Tarboush, Ward"]
[WhiteFideId "13508598"]
[BlackFideId "7601450"]
[WhiteElo "2486"]
[BlackElo "2635"]
[Result "1/2-1/2"]
[Round "8"]
[TimeControl "180+2"]
[Date "2023.06.27"]
[WhiteClock "0:00:10"]
[BlackClock "0:01:39"]
[Board "69"]

1. c4 {[%clk 0:03:00]}  c5 {[%clk 0:02:59]} 2. Nc3 {[%clk 0:02:58]}  Nc6 {[%clk 0:02:59]} 3. g3 {[%clk 0:02:59]}  g6 {[%clk 0:03:00]} 4. Bg2 {[%clk 0:02:59]}  Bg7 {[%clk 0:03:01]} 5. h4 {[%clk 0:02:58]}  Nf6 {[%clk 0:02:59]} 6. d3 {[%clk 0:02:58]}  e6 {[%clk 0:02:59]} 7. e4 {[%clk 0:02:57]}  Nd4 {[%clk 0:02:59]} 8. Nge2 {[%clk 0:02:53]}  d6 {[%clk 0:02:57]} 9. Nxd4 {[%clk 0:02:49]}  cxd4 {[%clk 0:02:58]} 10. Ne2 {[%clk 0:02:44]}  e5 {[%clk 0:02:53]} 11. Bg5 {[%clk 0:02:38]}  O-O {[%clk 0:02:53]} 12. Qd2 {[%clk 0:02:38]}  Qb6 {[%clk 0:02:49]} 13. Bh3 {[%clk 0:02:26]}  Bxh3 {[%clk 0:02:48]} 14. Rxh3 {[%clk 0:02:27]}  h6 {[%clk 0:02:49]} 15. Bxh6 {[%clk 0:02:12]}  Bxh6 {[%clk 0:02:47]} 16. Qxh6 {[%clk 0:02:13]}  Qxb2 {[%clk 0:02:47]} 17. Rd1 {[%clk 0:02:14]}  Nh7 {[%clk 0:02:37]} 18. h5 {[%clk 0:02:05]}  Qb4+ {[%clk 0:02:36]} 19. Kf1 {[%clk 0:02:03]}  g5 {[%clk 0:02:36]} 20. f4 {[%clk 0:01:59]}  Rae8 {[%clk 0:02:27]} 21. fxg5 {[%clk 0:01:46]}  Re6 {[%clk 0:02:27]} 22. g6 {[%clk 0:01:46]}  fxg6+ {[%clk 0:02:28]} 23. Kg1 {[%clk 0:01:43]}  Qa4 {[%clk 0:02:28]} 24. Ra1 {[%clk 0:01:24]}  Qe8 {[%clk 0:02:04]} 25. hxg6 {[%clk 0:01:05]}  Qxg6 {[%clk 0:02:05]} 26. Qxg6+ {[%clk 0:01:03]}  Rxg6 {[%clk 0:02:06]} 27. Rb1 {[%clk 0:00:59]}  Ng5 {[%clk 0:02:06]} 28. Rh5 {[%clk 0:00:54]}  b6 {[%clk 0:02:06]} 29. Rf1 {[%clk 0:00:47]}  Rxf1+ {[%clk 0:02:04]} 30. Kxf1 {[%clk 0:00:47]}  Kg7 {[%clk 0:02:04]} 31. Kg2 {[%clk 0:00:38]}  Ne6 {[%clk 0:02:01]} 32. Rf5 {[%clk 0:00:22]}  Nc5 {[%clk 0:02:00]} 33. Nc1 {[%clk 0:00:22]}  Rf6 {[%clk 0:01:59]} 34. Kf3 {[%clk 0:00:20]}  Rxf5+ {[%clk 0:01:59]} 35. exf5 {[%clk 0:00:21]}  Kf6 {[%clk 0:01:59]} 36. g4 {[%clk 0:00:21]}  Kg5 {[%clk 0:01:58]} 37. Kg3 {[%clk 0:00:20]}  a6 {[%clk 0:01:55]} 38. Kf3 {[%clk 0:00:19]}  b5 {[%clk 0:01:53]} 39. cxb5 {[%clk 0:00:19]}  axb5 {[%clk 0:01:54]} 40. Kg3 {[%clk 0:00:20]}  b4 {[%clk 0:01:53]} 41. Kf3 {[%clk 0:00:20]}  d5 {[%clk 0:01:54]} 42. Kg3 {[%clk 0:00:19]}  e4 {[%clk 0:01:54]} 43. Ne2 {[%clk 0:00:16]}  exd3 {[%clk 0:01:48]} 44. Nxd4 {[%clk 0:00:16]}  Ne4+ {[%clk 0:01:49]} 45. Kf3 {[%clk 0:00:12]}  d2 {[%clk 0:01:47]} 46. Ke2 {[%clk 0:00:11]}  Kxg4 {[%clk 0:01:47]} 47. f6 {[%clk 0:00:12]}  Nxf6 {[%clk 0:01:47]} 48. Kxd2 {[%clk 0:00:12]}  Ne4+ {[%clk 0:01:41]} 49. Ke3 {[%clk 0:00:12]}  Nc3 {[%clk 0:01:41]} 50. Nc2 {[%clk 0:00:12]}  Nxa2 {[%clk 0:01:40]} 51. Kd4 {[%clk 0:00:11]}  b3 {[%clk 0:01:41]} 52. Na3 {[%clk 0:00:12]}  b2 {[%clk 0:01:39]} 53. Kxd5 {[%clk 0:00:10]}  Nc3+ {[%clk 0:01:40]} 54. Kc4 {[%clk 0:00:10]}  b1=Q {[%clk 0:01:39]} 55. Nxb1 {[%clk 0:00:10]} 1/2-1/2


[Site "https://www.chess.com"]

[Event "Titled Tuesday Blitz June 27 Early 2023"]
[White "Colas, Joshua"]
[Black "Reprintsev, Alexander"]
[WhiteFideId "2044447"]
[BlackFideId "14100541"]
[WhiteElo "2626"]
[BlackElo "2475"]
[Result "1-0"]
[Round "8"]
[TimeControl "180+2"]
[Date "2023.06.27"]
[WhiteClock "0:01:36"]
[BlackClock "0:00:27"]
[Board "70"]

1. Nf3 {[%clk 0:02:55]}  d5 {[%clk 0:02:54]} 2. c4 {[%clk 0:02:54]}  d4 {[%clk 0:02:52]} 3. b4 {[%clk 0:02:54]}  f6 {[%clk 0:02:49]} 4. e3 {[%clk 0:02:39]}  e5 {[%clk 0:02:48]} 5. c5 {[%clk 0:02:37]}  a5 {[%clk 0:02:34]} 6. Qa4+ {[%clk 0:02:36]}  Qd7 {[%clk 0:02:25]} 7. b5 {[%clk 0:02:32]}  Bxc5 {[%clk 0:02:18]} 8. Bc4 {[%clk 0:02:31]}  e4 {[%clk 0:02:08]} 9. Bxg8 {[%clk 0:02:22]}  Rxg8 {[%clk 0:02:06]} 10. Qc4 {[%clk 0:02:23]}  exf3 {[%clk 0:01:58]} 11. Qxg8+ {[%clk 0:02:23]}  Bf8 {[%clk 0:01:57]} 12. gxf3 {[%clk 0:02:20]}  Qxb5 {[%clk 0:01:52]} 13. Ba3 {[%clk 0:02:18]}  Nd7 {[%clk 0:01:48]} 14. Qxh7 {[%clk 0:02:17]}  Ne5 {[%clk 0:01:36]} 15. Bxf8 {[%clk 0:02:06]}  Nxf3+ {[%clk 0:01:02]} 16. Kd1 {[%clk 0:02:04]}  Bg4 {[%clk 0:00:52]} 17. Qg6+ {[%clk 0:01:56]}  Kxf8 {[%clk 0:00:52]} 18. Qxg4 {[%clk 0:01:56]}  Qb2 {[%clk 0:00:39]} 19. Qxf3 {[%clk 0:01:54]}  Qxa1 {[%clk 0:00:39]} 20. Qxb7 {[%clk 0:01:54]}  Rd8 {[%clk 0:00:37]} 21. Ke2 {[%clk 0:01:51]}  dxe3 {[%clk 0:00:33]} 22. fxe3 {[%clk 0:01:48]}  Qxa2 {[%clk 0:00:32]} 23. Qxc7 {[%clk 0:01:43]}  Qd5 {[%clk 0:00:32]} 24. Rg1 {[%clk 0:01:37]}  Qd3+ {[%clk 0:00:31]} 25. Kf2 {[%clk 0:01:37]}  Rd5 {[%clk 0:00:27]} 26. Qxg7+ {[%clk 0:01:36]} 1-0


[Site "https://www.chess.com"]

[Event "Titled Tuesday Blitz June 27 Early 2023"]
[White "HamedWafa4"]
[Black "Mrudul Dehankar"]
[BlackFideId "25096990"]
[WhiteElo "2605"]
[BlackElo "2433"]
[Result "0-1"]
[Round "8"]
[TimeControl "180+2"]
[Date "2023.06.27"]
[WhiteClock "0:00:46"]
[BlackClock "0:00:30"]
[Board "75"]

1. e4 {[%clk 0:03:00]}  c6 {[%clk 0:02:56]} 2. d4 {[%clk 0:03:00]}  d5 {[%clk 0:02:56]} 3. Nc3 {[%clk 0:02:59]}  dxe4 {[%clk 0:02:55]} 4. Nxe4 {[%clk 0:03:00]}  Nf6 {[%clk 0:02:56]} 5. Ng3 {[%clk 0:02:58]}  h5 {[%clk 0:02:54]} 6. Bc4 {[%clk 0:02:55]}  h4 {[%clk 0:02:46]} 7. Nf1 {[%clk 0:02:54]}  c5 {[%clk 0:02:36]} 8. Nf3 {[%clk 0:02:37]}  h3 {[%clk 0:02:32]} 9. g3 {[%clk 0:02:30]}  Nc6 {[%clk 0:02:28]} 10. Ne3 {[%clk 0:02:21]}  cxd4 {[%clk 0:02:25]} 11. Nf1 {[%clk 0:02:11]}  Bg4 {[%clk 0:02:20]} 12. Be2 {[%clk 0:02:11]}  Qd5 {[%clk 0:02:18]} 13. N1d2 {[%clk 0:02:06]}  e5 {[%clk 0:02:17]} 14. O-O {[%clk 0:01:59]}  e4 {[%clk 0:02:14]} 15. Nxd4 {[%clk 0:01:49]}  Nxd4 {[%clk 0:01:12]} 16. Bxg4 {[%clk 0:01:47]}  Nxg4 {[%clk 0:01:02]} 17. Qxg4 {[%clk 0:01:42]}  e3 {[%clk 0:01:02]} 18. Ne4 {[%clk 0:01:27]}  e2 {[%clk 0:00:52]} 19. Re1 {[%clk 0:01:20]}  f5 {[%clk 0:00:34]} 20. Qxe2 {[%clk 0:01:14]}  Nxe2+ {[%clk 0:00:32]} 21. Rxe2 {[%clk 0:00:46]}  Qd1+ {[%clk 0:00:30]} 0-1


[Site "https://www.chess.com"]

[Event "Titled Tuesday Blitz June 27 Early 2023"]
[White "Gubajdullin, Alexei"]
[Black "Zuriel, Marisa"]
[WhiteFideId "4141202"]
[BlackFideId "109142"]
[WhiteElo "2604"]
[BlackElo "2334"]
[Result "1-0"]
[Round "8"]
[TimeControl "180+2"]
[Date "2023.06.27"]
[WhiteClock "0:01:03"]
[BlackClock "0:01:37"]
[Board "76"]

1. d4 {[%clk 0:02:59]}  Nf6 {[%clk 0:02:55]} 2. Nf3 {[%clk 0:02:58]}  c5 {[%clk 0:02:54]} 3. d5 {[%clk 0:02:56]}  b5 {[%clk 0:02:54]} 4. c4 {[%clk 0:02:44]}  g6 {[%clk 0:02:53]} 5. Nbd2 {[%clk 0:02:37]}  Bg7 {[%clk 0:02:50]} 6. e4 {[%clk 0:02:37]}  d6 {[%clk 0:02:49]} 7. cxb5 {[%clk 0:02:33]}  a6 {[%clk 0:02:49]} 8. a4 {[%clk 0:02:27]}  O-O {[%clk 0:02:47]} 9. Qc2 {[%clk 0:02:19]}  Qa5 {[%clk 0:02:44]} 10. Ra3 {[%clk 0:02:10]}  e6 {[%clk 0:02:26]} 11. dxe6 {[%clk 0:02:08]}  Bxe6 {[%clk 0:02:20]} 12. Be2 {[%clk 0:02:06]}  Nxe4 {[%clk 0:02:04]} 13. Qxe4 {[%clk 0:01:54]}  d5 {[%clk 0:02:05]} 14. Qh4 {[%clk 0:01:50]}  Re8 {[%clk 0:02:00]} 15. O-O {[%clk 0:01:48]}  Bf5 {[%clk 0:02:01]} 16. Bd3 {[%clk 0:01:37]}  Bxd3 {[%clk 0:01:51]} 17. Rxd3 {[%clk 0:01:36]}  d4 {[%clk 0:01:51]} 18. Nc4 {[%clk 0:01:32]}  Qxa4 {[%clk 0:01:47]} 19. Nd6 {[%clk 0:01:18]}  Rf8 {[%clk 0:01:46]} 20. Ng5 {[%clk 0:01:16]}  h6 {[%clk 0:01:45]} 21. Ngxf7 {[%clk 0:01:13]}  Rxf7 {[%clk 0:01:45]} 22. Nxf7 {[%clk 0:01:11]}  Kxf7 {[%clk 0:01:44]} 23. Rf3+ {[%clk 0:01:09]}  Kg8 {[%clk 0:01:44]} 24. Bxh6 {[%clk 0:01:08]}  Nd7 {[%clk 0:01:37]} 25. Bxg7 {[%clk 0:01:03]} 1-0


[Site "https://www.chess.com"]

[Event "Titled Tuesday Blitz June 27 Early 2023"]
[White "Dishman, Stephen"]
[Black "De La Villa Garcia, Jesus Maria"]
[WhiteFideId "403024"]
[BlackFideId "2200040"]
[WhiteElo "2382"]
[BlackElo "2603"]
[Result "0-1"]
[Round "8"]
[TimeControl "180+2"]
[Date "2023.06.27"]
[WhiteClock "0:00:23"]
[BlackClock "0:01:54"]
[Board "77"]

1. c4 {[%clk 0:03:00]}  e5 {[%clk 0:02:59]} 2. g3 {[%clk 0:03:00]}  Nf6 {[%clk 0:02:59]} 3. Bg2 {[%clk 0:03:00]}  c6 {[%clk 0:03:00]} 4. d4 {[%clk 0:03:00]}  e4 {[%clk 0:02:59]} 5. Nc3 {[%clk 0:02:59]}  d5 {[%clk 0:03:00]} 6. Qb3 {[%clk 0:02:54]}  dxc4 {[%clk 0:02:54]} 7. Qxc4 {[%clk 0:02:53]}  Be6 {[%clk 0:02:52]} 8. Qa4 {[%clk 0:02:53]}  b5 {[%clk 0:02:50]} 9. Qd1 {[%clk 0:02:53]}  Bb4 {[%clk 0:02:48]} 10. Nh3 {[%clk 0:02:51]}  Bxc3+ {[%clk 0:02:45]} 11. bxc3 {[%clk 0:02:50]}  O-O {[%clk 0:02:46]} 12. Nf4 {[%clk 0:02:48]}  Bf5 {[%clk 0:02:45]} 13. a4 {[%clk 0:02:42]}  g5 {[%clk 0:02:29]} 14. Nh3 {[%clk 0:02:40]}  h6 {[%clk 0:02:29]} 15. axb5 {[%clk 0:02:35]}  cxb5 {[%clk 0:02:28]} 16. e3 {[%clk 0:02:13]}  Qc8 {[%clk 0:02:24]} 17. Ng1 {[%clk 0:02:12]}  Qxc3+ {[%clk 0:02:23]} 18. Bd2 {[%clk 0:02:13]}  Qc8 {[%clk 0:02:16]} 19. Ne2 {[%clk 0:02:11]}  Nbd7 {[%clk 0:02:15]} 20. Nc3 {[%clk 0:02:01]}  a6 {[%clk 0:02:13]} 21. O-O {[%clk 0:02:00]}  Nb6 {[%clk 0:02:13]} 22. Qb1 {[%clk 0:01:57]}  Re8 {[%clk 0:02:10]} 23. Rc1 {[%clk 0:01:55]}  Nc4 {[%clk 0:02:09]} 24. Be1 {[%clk 0:01:55]}  Bh3 {[%clk 0:02:08]} 25. Bh1 {[%clk 0:01:54]}  Qf5 {[%clk 0:02:04]} 26. Ra2 {[%clk 0:01:05]}  Nxe3 {[%clk 0:02:00]} 27. Nxe4 {[%clk 0:01:01]}  Nxe4 {[%clk 0:01:57]} 28. Bxe4 {[%clk 0:00:23]}  Rxe4 {[%clk 0:01:54]} 0-1


[Site "https://www.chess.com"]

[Event "Titled Tuesday Blitz June 27 Early 2023"]
[White "Zavgorodniy, Sergiy"]
[Black "Rosh Jain"]
[WhiteFideId "14110148"]
[BlackFideId "25789465"]
[WhiteElo "2591"]
[BlackElo "2310"]
[Result "0-1"]
[Round "8"]
[TimeControl "180+2"]
[Date "2023.06.27"]
[WhiteClock "0:01:02"]
[BlackClock "0:00:41"]
[Board "78"]

1. d4 {[%clk 0:03:00]}  Nf6 {[%clk 0:02:59]} 2. c4 {[%clk 0:03:00]}  e6 {[%clk 0:03:00]} 3. Nf3 {[%clk 0:02:58]}  d5 {[%clk 0:02:59]} 4. e3 {[%clk 0:02:55]}  c5 {[%clk 0:02:58]} 5. dxc5 {[%clk 0:02:50]}  Bxc5 {[%clk 0:02:57]} 6. a3 {[%clk 0:02:47]}  Nc6 {[%clk 0:02:52]} 7. b4 {[%clk 0:02:44]}  Bd6 {[%clk 0:02:52]} 8. Bb2 {[%clk 0:02:42]}  dxc4 {[%clk 0:02:52]} 9. Bxc4 {[%clk 0:02:42]}  a6 {[%clk 0:02:53]} 10. O-O {[%clk 0:02:40]}  b5 {[%clk 0:02:53]} 11. Bd3 {[%clk 0:02:39]}  Bb7 {[%clk 0:02:49]} 12. Qe2 {[%clk 0:02:38]}  O-O {[%clk 0:02:48]} 13. Rd1 {[%clk 0:02:37]}  Qe7 {[%clk 0:02:40]} 14. Nc3 {[%clk 0:02:36]}  Rfd8 {[%clk 0:02:39]} 15. Rac1 {[%clk 0:02:36]}  Rac8 {[%clk 0:02:39]} 16. Ng5 {[%clk 0:02:35]}  Ne5 {[%clk 0:02:30]} 17. Bb1 {[%clk 0:02:22]}  Nc4 {[%clk 0:02:08]} 18. Nf3 {[%clk 0:02:07]}  Bxf3 {[%clk 0:02:00]} 19. gxf3 {[%clk 0:02:06]}  Be5 {[%clk 0:01:47]} 20. f4 {[%clk 0:02:02]}  Bb8 {[%clk 0:01:36]} 21. Ne4 {[%clk 0:01:52]}  Nxe4 {[%clk 0:01:32]} 22. Bxe4 {[%clk 0:01:53]}  e5 {[%clk 0:01:30]} 23. fxe5 {[%clk 0:01:47]}  Bxe5 {[%clk 0:01:24]} 24. Bxe5 {[%clk 0:01:46]}  Qxe5 {[%clk 0:01:24]} 25. Bb7 {[%clk 0:01:42]}  Rxd1+ {[%clk 0:01:21]} 26. Rxd1 {[%clk 0:01:42]}  Re8 {[%clk 0:01:09]} 27. Bxa6 {[%clk 0:01:41]}  Nxa3 {[%clk 0:01:09]} 28. Bb7 {[%clk 0:01:38]}  Qe7 {[%clk 0:01:01]} 29. Bd5 {[%clk 0:01:34]}  Qxb4 {[%clk 0:00:55]} 30. Bxf7+ {[%clk 0:01:21]}  Kxf7 {[%clk 0:00:51]} 31. Qh5+ {[%clk 0:01:21]}  Kf8 {[%clk 0:00:46]} 32. Qxh7 {[%clk 0:01:04]}  Qg4+ {[%clk 0:00:45]} 33. Kh1 {[%clk 0:01:04]}  Qxd1+ {[%clk 0:00:45]} 34. Kg2 {[%clk 0:01:04]}  Qg4+ {[%clk 0:00:42]} 35. Kf1 {[%clk 0:01:04]}  Qc4+ {[%clk 0:00:41]} 36. Kg2 {[%clk 0:01:02]}  Qe4+ {[%clk 0:00:41]} 0-1


[Site "https://www.chess.com"]

[Event "Titled Tuesday Blitz June 27 Early 2023"]
[White "Liu, Xiangyi"]
[Black "Philippe, Guillaume"]
[WhiteFideId "8605718"]
[BlackFideId "36048763"]
[WhiteElo "2729"]
[BlackElo "2295"]
[Result "0-1"]
[Round "8"]
[TimeControl "180+2"]
[Date "2023.06.27"]
[WhiteClock "0:00:17"]
[BlackClock "0:00:02"]
[Board "80"]

1. b3 {[%clk 0:03:00]}  e5 {[%clk 0:02:54]} 2. Bb2 {[%clk 0:03:00]}  Nc6 {[%clk 0:02:54]} 3. e3 {[%clk 0:03:00]}  Nf6 {[%clk 0:02:54]} 4. Bb5 {[%clk 0:02:59]}  d6 {[%clk 0:02:54]} 5. d4 {[%clk 0:02:58]}  exd4 {[%clk 0:02:51]} 6. exd4 {[%clk 0:02:59]}  Bd7 {[%clk 0:02:48]} 7. Nf3 {[%clk 0:02:58]}  Be7 {[%clk 0:02:34]} 8. O-O {[%clk 0:02:44]}  O-O {[%clk 0:02:34]} 9. d5 {[%clk 0:02:42]}  Ne5 {[%clk 0:02:34]} 10. Bxd7 {[%clk 0:02:39]}  Nfxd7 {[%clk 0:02:31]} 11. Nd4 {[%clk 0:02:37]}  Bf6 {[%clk 0:02:27]} 12. Nd2 {[%clk 0:02:37]}  g6 {[%clk 0:02:26]} 13. f4 {[%clk 0:02:32]}  c5 {[%clk 0:02:22]} 14. fxe5 {[%clk 0:02:30]}  Bxe5 {[%clk 0:02:22]} 15. Ne4 {[%clk 0:02:14]}  Nb6 {[%clk 0:01:33]} 16. c4 {[%clk 0:02:11]}  Qh4 {[%clk 0:01:25]} 17. Nf3 {[%clk 0:02:06]}  Qxe4 {[%clk 0:01:24]} 18. Nxe5 {[%clk 0:02:06]}  dxe5 {[%clk 0:01:20]} 19. Re1 {[%clk 0:02:04]}  Qh4 {[%clk 0:01:13]} 20. g3 {[%clk 0:01:51]}  Qh3 {[%clk 0:01:11]} 21. Bxe5 {[%clk 0:01:49]}  Rfe8 {[%clk 0:01:07]} 22. Qf3 {[%clk 0:01:47]}  a5 {[%clk 0:00:46]} 23. Qf6 {[%clk 0:01:45]}  Rxe5 {[%clk 0:00:46]} 24. Rxe5 {[%clk 0:01:44]}  Nd7 {[%clk 0:00:46]} 25. Qf4 {[%clk 0:01:35]}  Nxe5 {[%clk 0:00:45]} 26. Qxe5 {[%clk 0:01:36]}  Qg4 {[%clk 0:00:43]} 27. Rf1 {[%clk 0:01:32]}  a4 {[%clk 0:00:29]} 28. Qe7 {[%clk 0:01:22]}  Qd4+ {[%clk 0:00:23]} 29. Kh1 {[%clk 0:01:14]}  Rf8 {[%clk 0:00:18]} 30. Qxb7 {[%clk 0:00:53]}  Qd3 {[%clk 0:00:16]} 31. Rf4 {[%clk 0:00:38]}  Qb1+ {[%clk 0:00:15]} 32. Kg2 {[%clk 0:00:38]}  Qxa2+ {[%clk 0:00:16]} 33. Rf2 {[%clk 0:00:37]}  Qa3 {[%clk 0:00:12]} 34. Rf3 {[%clk 0:00:31]}  Qb2+ {[%clk 0:00:11]} 35. Kh3 {[%clk 0:00:31]}  a3 {[%clk 0:00:11]} 36. Qa7 {[%clk 0:00:30]}  a2 {[%clk 0:00:11]} 37. Rf1 {[%clk 0:00:26]}  Qxb3 {[%clk 0:00:11]} 38. Qxc5 {[%clk 0:00:25]}  Qc3 {[%clk 0:00:05]} 39. d6 {[%clk 0:00:19]}  a1=Q {[%clk 0:00:04]} 40. Rxa1 {[%clk 0:00:19]}  Qxa1 {[%clk 0:00:05]} 41. Qd5 {[%clk 0:00:20]}  Qf6 {[%clk 0:00:03]} 42. c5 {[%clk 0:00:20]}  Rd8 {[%clk 0:00:02]} 43. Kg4 {[%clk 0:00:19]}  Kf8 {[%clk 0:00:02]} 44. Qc6 {[%clk 0:00:18]}  Qf5+ {[%clk 0:00:01]} 45. Kh4 {[%clk 0:00:17]}  Qh5# {[%clk 0:00:02]} 0-1


[Site "https://www.chess.com"]

[Event "Titled Tuesday Blitz June 27 Early 2023"]
[White "Liyanage, Ranindu Dilshan"]
[Black "Czerw, Dawid"]
[WhiteFideId "9915834"]
[BlackFideId "1145746"]
[WhiteElo "2664"]
[BlackElo "2497"]
[Result "1-0"]
[Round "8"]
[TimeControl "180+2"]
[Date "2023.06.27"]
[WhiteClock "0:01:18"]
[BlackClock "0:00:15"]
[Board "83"]

1. Nf3 {[%clk 0:02:56]}  c5 {[%clk 0:03:00]} 2. e4 {[%clk 0:02:44]}  Nc6 {[%clk 0:02:59]} 3. Bb5 {[%clk 0:02:41]}  e6 {[%clk 0:02:59]} 4. O-O {[%clk 0:02:38]}  Nge7 {[%clk 0:02:54]} 5. Re1 {[%clk 0:02:38]}  a6 {[%clk 0:02:50]} 6. Bf1 {[%clk 0:02:37]}  d5 {[%clk 0:02:48]} 7. exd5 {[%clk 0:02:35]}  Nxd5 {[%clk 0:02:49]} 8. d4 {[%clk 0:02:35]}  cxd4 {[%clk 0:02:50]} 9. Nxd4 {[%clk 0:02:36]}  Nxd4 {[%clk 0:02:49]} 10. Qxd4 {[%clk 0:02:36]}  Nf6 {[%clk 0:02:44]} 11. Qxd8+ {[%clk 0:02:31]}  Kxd8 {[%clk 0:02:42]} 12. Bf4 {[%clk 0:02:31]}  Bd7 {[%clk 0:02:39]} 13. Nd2 {[%clk 0:02:28]}  Nd5 {[%clk 0:02:38]} 14. Bg3 {[%clk 0:02:26]}  Nb4 {[%clk 0:02:32]} 15. Rec1 {[%clk 0:02:13]}  f6 {[%clk 0:02:25]} 16. Nc4 {[%clk 0:02:08]}  Bc5 {[%clk 0:02:16]} 17. a3 {[%clk 0:02:07]}  Nd5 {[%clk 0:02:08]} 18. Rd1 {[%clk 0:02:08]}  Ke7 {[%clk 0:01:53]} 19. b4 {[%clk 0:02:03]}  Ba7 {[%clk 0:01:49]} 20. Nd6 {[%clk 0:01:55]}  Bc6 {[%clk 0:01:41]} 21. c4 {[%clk 0:01:52]}  Nc3 {[%clk 0:01:23]} 22. Re1 {[%clk 0:01:45]}  Rad8 {[%clk 0:01:06]} 23. c5 {[%clk 0:01:43]}  Bb8 {[%clk 0:01:02]} 24. Rac1 {[%clk 0:01:39]}  Nd5 {[%clk 0:00:59]} 25. Bc4 {[%clk 0:01:37]}  b5 {[%clk 0:00:54]} 26. Bb3 {[%clk 0:01:27]}  Bxd6 {[%clk 0:00:30]} 27. cxd6+ {[%clk 0:01:25]}  Rxd6 {[%clk 0:00:26]} 28. Bxd6+ {[%clk 0:01:23]}  Kxd6 {[%clk 0:00:27]} 29. Rxc6+ {[%clk 0:01:23]}  Kxc6 {[%clk 0:00:25]} 30. Rxe6+ {[%clk 0:01:23]}  Kd7 {[%clk 0:00:20]} 31. Bxd5 {[%clk 0:01:24]}  Rc8 {[%clk 0:00:19]} 32. g3 {[%clk 0:01:23]}  Rc1+ {[%clk 0:00:18]} 33. Kg2 {[%clk 0:01:22]}  Rd1 {[%clk 0:00:19]} 34. Bf3 {[%clk 0:01:18]}  Ra1 {[%clk 0:00:15]} 35. Rxa6 {[%clk 0:01:18]} 1-0


[Site "https://www.chess.com"]